lending/lending_fUSD_20240507
["ID","MTS","AMOUNT","RATE_DAILY","PERIOD"]
[326573038,1715113870101,-304.55830284,0.00021095,2]
[326573039,1715113870111,-500.0,0.00021095,2]
[326573040,1715113870124,-500.0,0.00021095,2]
[326573041,1715113870134,-500.0,0.00021095,2]
[326573042,1715113870144,-500.0,0.00021095,2]
[326573043,1715113870154,-500.0,0.00021095,2]
[326573044,1715113870164,-500.0,0.00021095,2]
[326573045,1715113870173,-500.0,0.00021095,2]
[326573046,1715113870183,-526.99,0.00021095,2]
[326573047,1715113870192,-684.15,0.00021095,2]
[326573048,1715113870202,-500.0,0.00021095,2]
[326573049,1715113870212,-500.0,0.00021095,2]
[326573050,1715113870222,-500.37,0.00021095,2]
[326573051,1715113870232,-500.0,0.00021095,2]
[326573052,1715113870242,-500.0,0.00021095,2]
[326573053,1715113870251,-500.0,0.00021095,2]
[326573054,1715113870262,-599.49,0.00021095,2]
[326573055,1715113870271,-500.0,0.00021095,2]
[326573056,1715113870280,-582.5,0.00021095,2]
[326573057,1715113870290,-500.0,0.00021095,2]
[326573058,1715113870300,-175.60369807,0.00021095,2]
[326573059,1715113870309,-500.0,0.00021095,2]
[326573060,1715113870319,-500.0,0.00021095,2]
[326573061,1715113870328,-500.0,0.00021095,2]
[326573062,1715113870338,-500.0,0.00021095,2]
[326573063,1715113870347,-500.0,0.00021095,2]
[326573064,1715113870357,-500.0,0.00021095,2]
[326573065,1715113870366,-715.61,0.00021095,2]
[326573066,1715113870375,-500.0,0.00021095,2]
[326573067,1715113870385,-500.0,0.00021095,2]
[326573068,1715113870394,-500.0,0.00021095,2]
[326573069,1715113870404,-500.0,0.00021095,2]
[326573070,1715113870414,-500.0,0.00021095,2]
[326573071,1715113870424,-500.0,0.00021095,2]
[326573072,1715113870434,-1741.3,0.00021095,2]
[326573073,1715113870444,-535.22,0.00021095,2]
[326573074,1715113870455,-500.0,0.00021095,2]
[326573075,1715113870466,-940.62,0.00021095,2]
[326573076,1715113870476,-500.0,0.00021095,2]
[326573077,1715113870486,-539.68,0.00021095,2]
[326573078,1715113870496,-2788.2,0.00021095,2]
[326573079,1715113870506,-500.0,0.00021095,2]
[326573080,1715113870517,-1292.34,0.00021095,2]
[326573081,1715113870528,-645.46,0.00021095,2]
[326573082,1715113870543,-446.1050161,0.00021095,2]
[326573083,1715113870554,-710.27,0.00021095,2]
[326573084,1715113870564,-500.0,0.00021095,2]
[326573085,1715113870574,-749.26,0.00021095,2]
[326573086,1715113870583,-2223.0,0.00021095,2]
[326573087,1715113870593,-500.0,0.00021095,2]
[326573088,1715113870602,-500.0,0.00021095,2]
[326573089,1715113870612,-500.0,0.00021095,2]
[326573090,1715113870622,-151.0,0.00021095,2]
[326573091,1715113870632,-500.0,0.00021095,2]
[326573092,1715113870641,-711.78,0.00021095,2]
[326573093,1715113870651,-500.0,0.00021095,2]
[326573094,1715113870660,-518.16559728,0.00021095,2]
[326573095,1715113870669,-547.13,0.00021095,2]
[326573096,1715113870679,-680.12,0.00021095,2]
[326573097,1715113870688,-1577.76,0.00021095,2]
[326573098,1715113870698,-561.78,0.00021095,2]
[326573099,1715113870708,-581.76,0.00021095,2]
[326573100,1715113870718,-500.0,0.00021095,2]
[326573101,1715113870728,-500.0,0.00021095,2]
[326573102,1715113870738,-500.0,0.00021095,2]
[326573103,1715113870747,-500.0,0.00021095,2]
[326573104,1715113870757,-687.99,0.00021095,2]
[326573105,1715113870768,-4127.75,0.00021095,2]
[326573106,1715113870777,-516.49,0.00021095,2]
[326573107,1715113870787,-799.61,0.00021095,2]
[326573108,1715113870796,-1401.63,0.00021095,2]
[326573109,1715113870806,-776.79,0.00021095,2]
[326573110,1715113870816,-1437.13,0.00021095,2]
[326573111,1715113870825,-701.01,0.00021095,2]
[326573112,1715113870835,-500.0,0.00021095,2]
[326573113,1715113870845,-5537.35,0.00021095,2]
[326573114,1715113870855,-853.18,0.00021095,2]
[326573115,1715113870865,-500.0,0.00021095,2]
[326573116,1715113870875,-818.27,0.00021095,2]
[326573117,1715113870884,-558.94,0.00021095,2]
[326573118,1715113870894,-500.0,0.00021095,2]
[326573119,1715113870903,-1491.2,0.00021095,2]
[326573120,1715113870912,-500.0,0.00021095,2]
[326573121,1715113870921,-727.39,0.00021095,2]
[326573122,1715113870931,-591.9,0.00021095,2]
[326573123,1715113870941,-500.0,0.00021095,2]
[326573124,1715113870950,-560.68,0.00021095,2]
[326573125,1715113870961,-669.61,0.00021095,2]
[326573126,1715113870970,-1228.41,0.00021095,2]
[326573127,1715113870980,-500.0,0.00021095,2]
[326573128,1715113870990,-500.0,0.00021095,2]
[326573129,1715113870999,-624.03,0.00021095,2]
[326573130,1715113871009,-1070.76,0.00021095,2]
[326573131,1715113871020,-500.0,0.00021095,2]
[326573132,1715113871030,-500.0,0.00021095,2]
[326573133,1715113871044,-3412.33,0.00021095,2]
[326573134,1715113871054,-500.0,0.00021095,2]
[326573135,1715113871064,-500.0,0.00021095,2]
[326573136,1715113871075,-500.0,0.00021095,2]
[326573137,1715113871085,-910.86,0.00021095,2]
[326573138,1715113871094,-407.39572637,0.00021095,2]
[326573139,1715113871103,-500.0,0.00021095,2]
[326573140,1715113871113,-228.35316935,0.00021095,2]
[326573141,1715113871126,-500.0,0.00021095,2]
[326573142,1715113871136,-500.0,0.00021095,2]
[326573143,1715113871146,-500.0,0.00021095,2]
[326573144,1715113871156,-628.74421453,0.00021095,2]
[326573145,1715113871166,-576.45,0.00021095,2]
[326573146,1715113871175,-722.56,0.00021095,2]
[326573147,1715113871184,-1842.24,0.00021095,2]
[326573148,1715113871194,-500.0,0.00021095,2]
[326573149,1715113871203,-500.0,0.00021095,2]
[326573150,1715113871212,-1096.22,0.00021095,2]
[326573151,1715113871222,-1409.68,0.00021095,2]
[326573152,1715113871232,-611.88,0.00021095,2]
[326573153,1715113871241,-500.0,0.00021095,2]
[326573154,1715113871251,-500.0,0.00021095,2]
[326573155,1715113871260,-838.71,0.00021095,2]
[326573156,1715113871270,-1105.09,0.00021095,2]
[326573157,1715113871280,-500.0,0.00021095,2]
[326573158,1715113871289,-500.0,0.00021095,2]
[326573159,1715113871299,-500.0,0.00021095,2]
[326573160,1715113871309,-1971.37,0.00021095,2]
[326573161,1715113871318,-592.84,0.00021095,2]
[326573162,1715113871328,-500.0,0.00021095,2]
[326573163,1715113871337,-2089.89,0.00021095,2]
[326573164,1715113871347,-576.81,0.00021095,2]
[326573165,1715113871357,-10776.78,0.00021095,2]
[326573166,1715113871366,-686.2,0.00021095,2]
[326573167,1715113871376,-2275.2,0.00021095,2]
[326573168,1715113871385,-600.53,0.00021095,2]
[326573169,1715113871395,-500.0,0.00021095,2]
[326573170,1715113871404,-1261.59,0.00021095,2]
[326573171,1715113871413,-5265.21,0.00021095,2]
[326573172,1715113871423,-1054.04,0.00021095,2]
[326573173,1715113871433,-874.16,0.00021095,2]
[326573174,1715113871442,-855.49,0.00021095,2]
[326573175,1715113871451,-500.0,0.00021095,2]
[326573176,1715113871461,-856.23,0.00021095,2]
[326573177,1715113871470,-500.0,0.00021095,2]
[326573178,1715113871480,-821.53,0.00021095,2]
[326573179,1715113871490,-1392.01,0.00021095,2]
[326573180,1715113871499,-500.0,0.00021095,2]
[326573181,1715113871509,-505.28,0.00021095,2]
[326573182,1715113871520,-1439.95,0.00021095,2]
[326573183,1715113871529,-1149.21,0.00021095,2]
[326573184,1715113871539,-794.53,0.00021095,2]
[326573185,1715113871551,-500.0,0.00021095,2]
[326573186,1715113871560,-500.0,0.00021095,2]
[326573187,1715113871570,-188.606789,0.00021095,2]
[326573188,1715113871580,-1692.56,0.00021095,2]
[326573189,1715113871589,-500.0,0.00021095,2]
[326573190,1715113871598,-1022.22,0.00021095,2]
[326573191,1715113871607,-1646.75,0.00021095,2]
[326573192,1715113871616,-724.92,0.00021095,2]
[326573193,1715113871625,-500.0,0.00021095,2]
[326573194,1715113871634,-500.0,0.00021095,2]
[326573195,1715113871643,-263.11660302,0.00021095,2]
[326573196,1715113871652,-1269.99,0.00021095,2]
[326573197,1715113871662,-500.0,0.00021095,2]
[326573198,1715113871671,-500.0,0.00021095,2]
[326573199,1715113871680,-2072.77,0.00021095,2]
[326573200,1715113871690,-607.52,0.00021095,2]
[326573201,1715113871699,-500.0,0.00021095,2]
[326573202,1715113871708,-500.0,0.00021095,2]
[326573203,1715113871718,-649.43,0.00021095,2]
[326573204,1715113871727,-151.0,0.00021095,2]
[326573205,1715113871736,-752.78,0.00021095,2]
[326573206,1715113871745,-902.24,0.00021095,2]
[326573207,1715113871755,-1048.33,0.00021095,2]
[326573208,1715113871766,-500.0,0.00021095,2]
[326573209,1715113871775,-885.17,0.00021095,2]
[326573210,1715113871784,-873.43,0.00021095,2]
[326573211,1715113871794,-949.99,0.00021095,2]
[326573212,1715113871803,-6949.33,0.00021095,2]
[326573213,1715113871812,-500.0,0.00021095,2]
[326573214,1715113871821,-1045.07,0.00021095,2]
[326573215,1715113871831,-1406.44,0.00021095,2]
[326573216,1715113871840,-500.0,0.00021095,2]
[326573217,1715113871849,-1377.48,0.00021095,2]
[326573218,1715113871858,-500.0,0.00021095,2]
[326573219,1715113871868,-500.0,0.00021095,2]
[326573220,1715113871878,-706.85,0.00021095,2]
[326573221,1715113871888,-988.15,0.00021095,2]
[326573222,1715113871898,-602.53,0.00021095,2]
[326573223,1715113871907,-500.0,0.00021095,2]
[326573224,1715113871916,-702.58,0.00021095,2]
[326573225,1715113871926,-1129.59,0.00021095,2]
[326573226,1715113871935,-801.08,0.00021095,2]
[326573227,1715113871944,-2577.91,0.00021095,2]
[326573228,1715113871953,-2252.22,0.00021095,2]
[326573229,1715113871963,-500.0,0.00021095,2]
[326573230,1715113871973,-500.0,0.00021095,2]
[326573231,1715113871982,-691.69,0.00021095,2]
[326573232,1715113871992,-500.0,0.00021095,2]
[326573233,1715113872001,-643.49,0.00021095,2]
[326573234,1715113872011,-1003.94,0.00021095,2]
[326573235,1715113872021,-500.0,0.00021095,2]
[326573236,1715113872030,-500.0,0.00021095,2]
[326573237,1715113872044,-500.0,0.00021095,2]
[326573238,1715113872053,-500.0,0.00021095,2]
[326573239,1715113872063,-2295.13,0.00021095,2]
[326573240,1715113872073,-500.0,0.00021095,2]
[326573241,1715113872083,-1288.82,0.00021095,2]
[326573242,1715113872092,-1322.38,0.00021095,2]
[326573243,1715113872102,-500.0,0.00021095,2]
[326573244,1715113872111,-557.07,0.00021095,2]
[326573245,1715113872122,-500.0,0.00021095,2]
[326573246,1715113872133,-500.0,0.00021095,2]
[326573247,1715113872142,-651.03,0.00021095,2]
[326573248,1715113872151,-7824.13,0.00021095,2]
[326573249,1715113872161,-237.176223,0.00021096,2]
[326573250,1715113872171,-300.0,0.00021097,2]
[326573251,1715113872180,-886.92,0.000211,2]
[326573252,1715113872189,-300.0,0.00021113,2]
[326573253,1715113872198,-5737.74953061,0.00021163,2]
[326573254,1715113872207,-414.71,0.00021173,2]
[326573255,1715113872216,-414.71,0.00021174,2]
[326573256,1715113872225,-161.84679703,0.0002124,2]
[326573257,1715113872234,-1313.95594965,0.00021263,2]
[326573258,1715113872244,-179.8,0.00021273,5]
[326573259,1715113872253,-157.0,0.0002133,8]
[326573260,1715113872264,-152.67353958,0.00021334,2]
[326573261,1715113872273,-300.0,0.00021359,2]
[326573262,1715113872282,-300.0,0.00021366,2]
[326573263,1715113872293,-549.0,0.00021368,2]
[326573264,1715113872302,-500.0,0.00021369,2]
[326573265,1715113872311,-500.0,0.00021369,2]
[326573266,1715113872320,-500.0,0.00021369,2]
[326573267,1715113872330,-500.0,0.00021369,2]
[326573268,1715113872339,-500.0,0.00021369,2]
[326573269,1715113872348,-500.0,0.00021369,2]
[326573270,1715113872357,-500.0,0.00021369,2]
[326573271,1715113872367,-500.0,0.00021369,2]
[326573272,1715113872376,-500.0,0.00021369,2]
[326573273,1715113872385,-500.0,0.00021369,2]
[326573274,1715113872395,-500.0,0.00021369,2]
[326573275,1715113872404,-500.0,0.00021369,2]
[326573276,1715113872413,-500.0,0.00021369,2]
[326573277,1715113872422,-500.0,0.00021369,2]
[326573278,1715113872431,-555.62,0.00021369,2]
[326573279,1715113872440,-500.0,0.00021369,2]
[326573280,1715113872450,-500.0,0.00021369,2]
[326573281,1715113872459,-500.0,0.00021369,2]
[326573282,1715113872468,-299.79624698,0.00021369,2]
[326573283,1715113872478,-500.0,0.00021369,2]
[326573284,1715113872486,-500.0,0.00021369,2]
[326573285,1715113872496,-500.0,0.00021369,2]
[326573286,1715113872505,-500.0,0.00021369,2]
[326573287,1715113872515,-500.0,0.00021369,2]
[326573288,1715113872524,-500.0,0.00021369,2]
[326573289,1715113872534,-1076.55,0.00021369,2]
[326573290,1715113872544,-500.0,0.00021369,2]
[326573291,1715113872553,-500.0,0.00021369,2]
[326573292,1715113872563,-500.0,0.00021369,2]
[326573293,1715113872572,-416.0351972,0.00021369,2]
[326573294,1715113872582,-500.0,0.00021369,2]
[326573295,1715113872591,-186.61925835,0.00021369,2]
[326573296,1715113872601,-500.0,0.00021369,2]
[326573297,1715113872610,-500.0,0.00021369,2]
[326573298,1715113872619,-500.0,0.00021369,2]
[326573299,1715113872628,-500.0,0.00021369,2]
[326573300,1715113872638,-500.0,0.00021369,2]
[326573301,1715113872647,-227.25406807,0.00021369,2]
[326573302,1715113872657,-500.0,0.00021369,2]
[326573303,1715113872666,-500.0,0.00021369,2]
[326573304,1715113872675,-500.0,0.00021369,2]
[326573305,1715113872684,-508.63,0.00021369,2]
[326573306,1715113872694,-500.0,0.00021369,2]
[326573307,1715113872702,-500.0,0.00021369,2]
[326573308,1715113872712,-500.0,0.00021369,2]
[326573309,1715113872721,-500.0,0.00021369,2]
[326573310,1715113872731,-629.13,0.00021369,2]
[326573311,1715113872740,-500.0,0.00021369,2]
[326573312,1715113872749,-500.0,0.00021369,2]
[326573313,1715113872759,-500.0,0.00021369,2]
[326573314,1715113872769,-597.37,0.00021369,2]
[326573315,1715113872778,-268.51,0.00021369,2]
[326573316,1715113872788,-500.0,0.00021369,2]
[326573317,1715113872797,-500.0,0.00021369,2]
[326573318,1715113872806,-504.72,0.00021369,2]
[326573319,1715113872816,-500.0,0.00021369,2]
[326573320,1715113872825,-500.0,0.00021369,2]
[326573321,1715113872835,-480.15939879,0.00021369,2]
[326573322,1715113872844,-500.0,0.00021369,2]
[326573323,1715113872853,-500.0,0.00021369,2]
[326573324,1715113872862,-500.0,0.00021369,2]
[326573325,1715113872871,-500.0,0.00021369,2]
[326573326,1715113872880,-518.3,0.00021369,2]
[326573327,1715113872889,-587.47,0.00021369,2]
[326573328,1715113872899,-500.0,0.00021369,2]
[326573329,1715113872908,-500.0,0.00021369,2]
[326573330,1715113872918,-696.01,0.00021369,2]
[326573331,1715113872927,-500.0,0.00021369,2]
[326573332,1715113872937,-500.0,0.00021369,2]
[326573333,1715113872946,-280.40798894,0.00021369,2]
[326573334,1715113872956,-500.0,0.00021369,2]
[326573335,1715113872965,-500.0,0.00021369,2]
[326573336,1715113872975,-500.0,0.00021369,2]
[326573337,1715113872984,-500.0,0.00021369,2]
[326573338,1715113872993,-500.0,0.00021369,2]
[326573339,1715113873002,-500.0,0.00021369,2]
[326573340,1715113873011,-500.0,0.00021369,2]
[326573341,1715113873021,-526.99,0.00021369,2]
[326573342,1715113873030,-684.15,0.00021369,2]
[326573343,1715113873044,-500.0,0.00021369,2]
[326573344,1715113873053,-500.0,0.00021369,2]
[326573345,1715113873063,-500.37,0.00021369,2]
[326573346,1715113873072,-500.0,0.00021369,2]
[326573347,1715113873082,-500.0,0.00021369,2]
[326573348,1715113873092,-500.0,0.00021369,2]
[326573349,1715113873101,-599.49,0.00021369,2]
[326573350,1715113873110,-500.0,0.00021369,2]
[326573351,1715113873282,-582.5,0.00021369,2]
[326573352,1715113873292,-500.0,0.00021369,2]
[326573353,1715113873301,-388.27895903,0.00021369,2]
[326573354,1715113873311,-500.0,0.00021369,2]
[326573355,1715113873320,-500.0,0.00021369,2]
[326573356,1715113873330,-500.0,0.00021369,2]
[326573357,1715113873339,-500.0,0.00021369,2]
[326573358,1715113873348,-500.0,0.00021369,2]
[326573359,1715113873357,-715.61,0.00021369,2]
[326573360,1715113873367,-500.0,0.00021369,2]
[326573361,1715113873376,-500.0,0.00021369,2]
[326573362,1715113873385,-500.0,0.00021369,2]
[326573363,1715113873394,-500.0,0.00021369,2]
[326573364,1715113873404,-500.0,0.00021369,2]
[326573365,1715113873413,-500.0,0.00021369,2]
[326573366,1715113873422,-1741.3,0.00021369,2]
[326573367,1715113873432,-535.22,0.00021369,2]
[326573368,1715113873442,-417.67766256,0.00021369,2]
[326573369,1715113873452,-940.62,0.00021369,2]
[326573370,1715113873461,-500.0,0.00021369,2]
[326573371,1715113873470,-539.68,0.00021369,2]
[326573372,1715113873480,-2788.2,0.00021369,2]
[326573373,1715113873490,-500.0,0.00021369,2]
[326573374,1715113873500,-1292.34,0.00021369,2]
[326573375,1715113873511,-645.46,0.00021369,2]
[326573376,1715113873520,-710.27,0.00021369,2]
[326573377,1715113873530,-619.38735052,0.00021369,2]
[326573378,1715113873540,-749.26,0.00021369,2]
[326573379,1715113873551,-2223.0,0.00021369,2]
[326573380,1715113873562,-500.0,0.00021369,2]
[326573381,1715113873571,-500.0,0.00021369,2]
[326573382,1715113873581,-500.0,0.00021369,2]
[326573383,1715113873591,-151.0,0.00021369,2]
[326573384,1715113873600,-500.0,0.00021369,2]
[326573385,1715113873610,-711.78,0.00021369,2]
[326573386,1715113873619,-500.0,0.00021369,2]
[326573387,1715113873628,-547.13,0.00021369,2]
[326573388,1715113873638,-680.12,0.00021369,2]
[326573389,1715113873647,-1577.76,0.00021369,2]
[326573390,1715113873657,-561.78,0.00021369,2]
[326573391,1715113873666,-581.76,0.00021369,2]
[326573392,1715113873676,-500.0,0.00021369,2]
[326573393,1715113873685,-500.0,0.00021369,2]
[326573394,1715113873695,-500.0,0.00021369,2]
[326573395,1715113873704,-500.0,0.00021369,2]
[326573396,1715113873714,-687.99,0.00021369,2]
[326573397,1715113873724,-516.49,0.00021369,2]
[326573398,1715113873734,-4127.75,0.00021369,2]
[326573399,1715113873743,-799.61,0.00021369,2]
[326573400,1715113873753,-1401.63,0.00021369,2]
[326573401,1715113873762,-776.79,0.00021369,2]
[326573402,1715113873773,-1437.13,0.00021369,2]
[326573403,1715113873782,-701.01,0.00021369,2]
[326573404,1715113873792,-500.0,0.00021369,2]
[326573405,1715113873803,-5537.35,0.00021369,2]
[326573406,1715113873813,-853.18,0.00021369,2]
[326573407,1715113873823,-500.0,0.00021369,2]
[326573408,1715113873833,-818.27,0.00021369,2]
[326573409,1715113873842,-558.94,0.00021369,2]
[326573410,1715113873851,-500.0,0.00021369,2]
[326573411,1715113873860,-1491.2,0.00021369,2]
[326573412,1715113873870,-500.0,0.00021369,2]
[326573413,1715113873880,-727.39,0.00021369,2]
[326573414,1715113873889,-591.9,0.00021369,2]
[326573415,1715113873898,-500.0,0.00021369,2]
[326573416,1715113873908,-560.68,0.00021369,2]
[326573417,1715113873917,-669.61,0.00021369,2]
[326573418,1715113873927,-1228.41,0.00021369,2]
[326573419,1715113873936,-500.0,0.00021369,2]
[326573420,1715113873946,-500.0,0.00021369,2]
[326573421,1715113873955,-624.03,0.00021369,2]
[326573422,1715113873964,-1070.76,0.00021369,2]
[326573423,1715113873974,-500.0,0.00021369,2]
[326573424,1715113873983,-500.0,0.00021369,2]
[326573425,1715113873993,-3412.33,0.00021369,2]
[326573426,1715113874003,-500.0,0.00021369,2]
[326573427,1715113874013,-500.0,0.00021369,2]
[326573428,1715113874024,-500.0,0.00021369,2]
[326573429,1715113874036,-910.86,0.00021369,2]
[326573430,1715113874049,-500.0,0.00021369,2]
[326573431,1715113874058,-500.0,0.00021369,2]
[326573432,1715113874067,-500.0,0.00021369,2]
[326573433,1715113874076,-500.0,0.00021369,2]
[326573434,1715113874087,-576.45,0.00021369,2]
[326573435,1715113874096,-722.56,0.00021369,2]
[326573436,1715113874106,-1842.24,0.00021369,2]
[326573437,1715113874116,-500.0,0.00021369,2]
[326573438,1715113874125,-500.0,0.00021369,2]
[326573439,1715113874135,-1096.22,0.00021369,2]
[326573440,1715113874144,-1409.68,0.00021369,2]
[326573441,1715113874154,-611.88,0.00021369,2]
[326573442,1715113874164,-500.0,0.00021369,2]
[326573443,1715113874173,-500.0,0.00021369,2]
[326573444,1715113874182,-838.71,0.00021369,2]
[326573445,1715113874191,-1105.09,0.00021369,2]
[326573446,1715113874201,-500.0,0.00021369,2]
[326573447,1715113874211,-500.0,0.00021369,2]
[326573448,1715113874220,-500.0,0.00021369,2]
[326573449,1715113874230,-1971.37,0.00021369,2]
[326573450,1715113874240,-592.84,0.00021369,2]
[326573451,1715113874249,-500.0,0.00021369,2]
[326573452,1715113874259,-2089.89,0.00021369,2]
[326573453,1715113874270,-576.81,0.00021369,2]
[326573454,1715113874280,-10776.78,0.00021369,2]
[326573455,1715113874289,-686.2,0.00021369,2]
[326573456,1715113874299,-2275.2,0.00021369,2]
[326573457,1715113874308,-600.53,0.00021369,2]
[326573458,1715113874317,-500.0,0.00021369,2]
[326573459,1715113874327,-1261.59,0.00021369,2]
[326573460,1715113874336,-5265.21,0.00021369,2]
[326573461,1715113874345,-1054.04,0.00021369,2]
[326573462,1715113874355,-874.16,0.00021369,2]
[326573463,1715113874364,-855.49,0.00021369,2]
[326573464,1715113874373,-500.0,0.00021369,2]
[326573465,1715113874383,-856.23,0.00021369,2]
[326573466,1715113874392,-500.0,0.00021369,2]
[326573467,1715113874402,-821.53,0.00021369,2]
[326573468,1715113874411,-500.0,0.00021369,2]
[326573469,1715113874421,-1392.01,0.00021369,2]
[326573470,1715113874431,-505.28,0.00021369,2]
[326573471,1715113874440,-1439.95,0.00021369,2]
[326573472,1715113874449,-1149.21,0.00021369,2]
[326573473,1715113874459,-794.53,0.00021369,2]
[326573474,1715113874468,-500.0,0.00021369,2]
[326573475,1715113874478,-500.0,0.00021369,2]
[326573476,1715113874487,-1692.56,0.00021369,2]
[326573477,1715113874497,-500.0,0.00021369,2]
[326573478,1715113874507,-1022.22,0.00021369,2]
[326573479,1715113874517,-1646.75,0.00021369,2]
[326573480,1715113874527,-724.92,0.00021369,2]
[326573481,1715113874536,-500.0,0.00021369,2]
[326573482,1715113874547,-500.0,0.00021369,2]
[326573483,1715113874557,-1269.99,0.00021369,2]
[326573484,1715113874567,-500.0,0.00021369,2]
[326573485,1715113874576,-500.0,0.00021369,2]
[326573486,1715113874586,-2072.77,0.00021369,2]
[326573487,1715113874595,-607.52,0.00021369,2]
[326573488,1715113874607,-500.0,0.00021369,2]
[326573489,1715113874616,-500.0,0.00021369,2]
[326573490,1715113874626,-649.43,0.00021369,2]
[326573491,1715113874636,-151.0,0.00021369,2]
[326573492,1715113874646,-752.78,0.00021369,2]
[326573493,1715113874655,-902.24,0.00021369,2]
[326573494,1715113874664,-1048.33,0.00021369,2]
[326573495,1715113874674,-500.0,0.00021369,2]
[326573496,1715113874683,-885.17,0.00021369,2]
[326573497,1715113874692,-949.99,0.00021369,2]
[326573498,1715113874702,-873.43,0.00021369,2]
[326573499,1715113874711,-6949.33,0.00021369,2]
[326573500,1715113874721,-500.0,0.00021369,2]
[326573501,1715113874730,-1045.07,0.00021369,2]
[326573502,1715113874739,-1406.44,0.00021369,2]
[326573503,1715113874749,-500.0,0.00021369,2]
[326573504,1715113874759,-1377.48,0.00021369,2]
[326573505,1715113874769,-500.0,0.00021369,2]
[326573506,1715113874779,-500.0,0.00021369,2]
[326573507,1715113874789,-706.85,0.00021369,2]
[326573508,1715113874799,-988.15,0.00021369,2]
[326573509,1715113874808,-602.53,0.00021369,2]
[326573510,1715113874818,-500.0,0.00021369,2]
[326573511,1715113874827,-702.58,0.00021369,2]
[326573512,1715113874837,-1129.59,0.00021369,2]
[326573513,1715113874846,-801.08,0.00021369,2]
[326573514,1715113874856,-2577.91,0.00021369,2]
[326573515,1715113874865,-2252.22,0.00021369,2]
[326573516,1715113874875,-500.0,0.00021369,2]
[326573517,1715113874884,-500.0,0.00021369,2]
[326573518,1715113874893,-691.69,0.00021369,2]
[326573519,1715113874902,-174.65442039,0.00021369,2]
[326573520,1715113874911,-643.49,0.00021369,2]
[326573521,1715113874920,-1003.94,0.00021369,2]
[326573522,1715113874931,-418.10518602,0.00021369,2]
[326573523,1715113874940,-500.0,0.00021369,2]
[326573524,1715113874950,-500.0,0.00021369,2]
[326573525,1715113874960,-500.0,0.00021369,2]
[326573526,1715113874969,-2295.13,0.00021369,2]
[326573527,1715113874979,-500.0,0.00021369,2]
[326573528,1715113874988,-1288.82,0.00021369,2]
[326573529,1715113874997,-1322.38,0.00021369,2]
[326573530,1715113875008,-500.0,0.00021369,2]
[326573531,1715113875017,-557.07,0.00021369,2]
[326573532,1715113875027,-500.0,0.00021369,2]
[326573533,1715113875037,-500.0,0.00021369,2]
[326573534,1715113875051,-651.03,0.00021369,2]
[326573535,1715113875060,-7824.13,0.00021369,2]
[326573536,1715113875074,-300.0,0.0002137,2]
[326573537,1715113875089,-300.0,0.00021381,2]